bitfinex/quotes_BTCUSD_20241222
["timestamp","ask_amount","ask_price","bid_price","bid_amount"]
[1734841374145,0.0789,96890.0,96882.0,0.2059477]
[1734841374554,0.0779,96890.0,96876.0,0.206449]
[1734841374760,0.00057604,96889.0,96871.0,0.2066438]
[1734841374962,0.08588668,96881.0,96871.0,0.0001858]
[1734841375184,0.1277,96879.0,96871.0,0.0001858]
[1734841375384,0.206456,96873.0,96871.0,0.0001858]
[1734841375583,0.00057604,96872.0,96871.0,0.0001858]
[1734841376808,0.01978417,96872.0,96871.0,0.0001858]
[1734841378084,0.02478417,96872.0,96871.0,0.0001858]
[1734841378521,0.02220813,96872.0,96871.0,0.0001858]
[1734841378756,0.01920813,96872.0,96871.0,0.0001858]
[1734841378931,0.02120813,96872.0,96871.0,0.0001858]
[1734841379084,0.02420813,96872.0,96871.0,0.0001858]
[1734841379289,0.02120813,96872.0,96871.0,0.0001858]
[1734841379675,0.002,96872.0,96871.0,0.0001858]
[1734841380075,0.09186445,96876.0,96871.0,0.0001858]
[1734841380287,0.001,96872.0,96871.0,0.0001858]
[1734841380728,0.003,96872.0,96871.0,0.0001858]
[1734841380928,0.00057604,96877.0,96871.0,0.0001858]
[1734841381135,0.001,96876.0,96871.0,0.0001858]
[1734841381380,0.003,96876.0,96871.0,0.0001858]
[1734841381572,0.00057604,96877.0,96871.0,0.0001858]
[1734841382436,0.002,96876.0,96871.0,0.0001858]
[1734841383135,0.00057604,96875.0,96871.0,0.0001858]
[1734841384505,0.00157604,96875.0,96871.0,0.0001858]
[1734841384909,0.00357604,96875.0,96871.0,0.0001858]
[1734841385360,0.00257604,96875.0,96871.0,0.0001858]
[1734841385538,0.00557604,96875.0,96871.0,0.0001858]
[1734841386185,0.00357604,96875.0,96871.0,0.0001858]
[1734841386387,0.003,96875.0,96871.0,0.0001858]
[1734841386569,0.004,96875.0,96871.0,0.0001858]
[1734841387091,0.00057604,96878.0,96871.0,0.0001858]
[1734841387319,0.002,96875.0,96871.0,0.0001858]
[1734841387555,0.003,96875.0,96871.0,0.0001858]
[1734841387840,0.001,96875.0,96871.0,0.0001858]
[1734841388011,0.002,96875.0,96871.0,0.0001858]
[1734841389805,0.01917934,96874.0,96871.0,0.0001858]
[1734841390213,0.01917934,96873.0,96871.0,0.0001858]
[1734841390612,0.01917934,96874.0,96871.0,0.0001858]
[1734841390950,0.02117934,96874.0,96871.0,0.0001858]
[1734841391075,0.01917934,96873.0,96871.0,0.0001858]
[1734841391531,0.02017934,96873.0,96871.0,0.0001858]
[1734841391744,0.001,96874.0,96871.0,0.0001858]
[1734841392076,0.002,96874.0,96871.0,0.0001858]
[1734841392279,0.206455,96873.0,96871.0,0.0001858]
[1734841392478,0.00057604,96872.0,96871.0,0.0001858]
[1734841395465,0.00157604,96872.0,96871.0,0.0001858]
[1734841396003,0.00257604,96872.0,96871.0,0.0001858]
[1734841396490,0.00157604,96872.0,96871.0,0.0001858]
[1734841396658,0.10388444,96872.0,96871.0,0.0001858]
[1734841396865,0.18298444,96872.0,96871.0,0.0001858]
[1734841400863,0.18198444,96872.0,96871.0,0.0001858]
[1734841401029,0.18498444,96872.0,96871.0,0.0001858]
[1734841401651,0.18398444,96872.0,96871.0,0.0001858]
[1734841401810,0.18598444,96872.0,96871.0,0.0001858]
[1734841405187,0.005,96872.0,96871.0,0.0001858]
[1734841405833,0.02423729,96872.0,96871.0,0.0001858]
[1734841405961,0.02223729,96872.0,96871.0,0.0001858]
[1734841406167,0.02323729,96872.0,96871.0,0.0001858]
[1734841406367,0.02023729,96872.0,96871.0,0.0001858]
[1734841406624,0.001,96872.0,96871.0,0.0001858]
[1734841406795,0.002,96872.0,96871.0,0.0001858]
[1734841430328,0.077,96872.0,96871.0,0.0001858]
[1734841430498,0.07757604,96872.0,96871.0,0.0001858]
[1734841432133,0.64863208,96872.0,96871.0,0.0001858]
[1734841432316,0.64805604,96872.0,96871.0,0.0001858]
[1734841433363,0.41764928,96872.0,96871.0,0.0001858]
[1734841434454,0.60220185,96872.0,96871.0,0.0001858]
[1734841435995,0.41764928,96872.0,96871.0,0.0001858]
[1734841436377,0.41664928,96872.0,96871.0,0.0001858]
[1734841437026,0.076,96872.0,96871.0,0.0001858]
[1734841437185,0.07857604,96872.0,96871.0,0.0001858]
[1734841438221,0.41922532,96872.0,96871.0,0.0001858]
[1734841438436,0.41864928,96872.0,96871.0,0.0001858]
[1734841439433,0.51995768,96872.0,96871.0,0.0001858]
[1734841439834,0.51895768,96872.0,96871.0,0.0001858]
[1734841440065,0.51695768,96872.0,96871.0,0.0001858]
[1734841440402,0.51895768,96872.0,96871.0,0.0001858]
[1734841440812,0.51695768,96872.0,96871.0,0.0001858]
[1734841441110,0.51995768,96872.0,96871.0,0.0001858]
[1734841441303,0.51695768,96872.0,96871.0,0.0001858]
[1734841441530,0.52195768,96872.0,96871.0,0.0001858]
[1734841443391,0.7524393,96872.0,96871.0,0.0001858]
[1734841448796,0.6774393,96872.0,96871.0,0.0001858]
[1734841450031,0.5761309,96872.0,96871.0,0.0001858]
[1734841450863,0.5731309,96872.0,96871.0,0.0001858]
[1734841451266,0.5741309,96872.0,96871.0,0.0001858]
[1734841451480,0.003,96872.0,96871.0,0.0001858]
[1734841452048,0.002,96872.0,96871.0,0.0001858]
[1734841452436,0.09221475,96883.0,96878.0,0.206443]
[1734841452659,0.00057604,96885.0,96878.0,0.206443]
[1734841452660,0.09221475,96884.0,96878.0,0.206443]
[1734841453464,0.09221475,96885.0,96878.0,0.206443]
[1734841453661,0.00057604,96884.0,96878.0,0.206443]
[1734841454066,0.00657604,96884.0,96878.0,0.206443]
[1734841454269,0.00357604,96884.0,96878.0,0.206443]
[1734841455102,0.00957604,96884.0,96878.0,0.206443]
[1734841455251,0.009,96884.0,96882.0,0.206434]
[1734841455450,0.009,96884.0,96878.0,0.206443]
[1734841455657,0.00057604,96883.0,96878.0,0.206443]
[1734841456970,0.09221475,96885.0,96883.0,0.206434]
[1734841457162,0.09221475,96886.0,96883.0,0.206434]
[1734841457366,0.00057604,96885.0,96879.0,0.206441]
[1734841457655,0.00057604,96885.0,96879.0,0.412883]
[1734841458142,0.09221475,96886.0,96879.0,0.412883]
[1734841458348,0.09921475,96886.0,96879.0,0.412883]
[1734841458510,0.09221475,96886.0,96879.0,0.412883]
[1734841458704,0.09279079,96886.0,96879.0,0.206441]
[1734841458910,0.00357604,96885.0,96880.0,0.20644]
[1734841459256,0.00057604,96885.0,96880.0,0.20644]
[1734841459811,0.00657604,96885.0,96880.0,0.20644]
[1734841460278,0.00057604,96885.0,96880.0,0.20644]
[1734841460413,0.009,96885.0,96880.0,0.20644]
[1734841460750,0.00957604,96885.0,96880.0,0.20644]
[1734841460995,0.00057604,96884.0,96880.0,0.20644]
[1734841462094,0.00057604,96884.0,96878.0,0.2065297]
[1734841462297,0.0818,96883.0,96878.0,8.57e-05]
[1734841462485,0.00057604,96882.0,96878.0,8.57e-05]
[1734841463658,0.09221475,96879.0,96878.0,8.57e-05]
[1734841463862,0.09279079,96879.0,96878.0,8.57e-05]
[1734841464684,0.00057604,96879.0,96878.0,8.57e-05]
[1734841464890,0.00457604,96879.0,96878.0,8.57e-05]
[1734841466049,0.00657604,96879.0,96878.0,8.57e-05]
[1734841466812,0.3467728,96879.0,96878.0,8.57e-05]
[1734841467009,0.34619676,96879.0,96878.0,8.57e-05]
[1734841467618,0.52930516,96879.0,96878.0,8.57e-05]
[1734841468468,0.71373467,96879.0,96878.0,8.57e-05]
[1734841469574,0.52930516,96879.0,96878.0,8.57e-05]
[1734841477636,0.52930516,96879.0,96871.0,0.0001858]
[1734841477971,0.10188444,96878.0,96871.0,0.0001858]
[1734841478887,0.288858,96872.0,96871.0,0.0001858]
[1734841479089,0.3901664,96872.0,96871.0,0.0001858]
[1734841480250,0.3961664,96872.0,96871.0,0.0001858]
[1734841481077,0.73036316,96872.0,96871.0,0.0001858]
[1734841481280,0.73336316,96872.0,96871.0,0.0001858]
[1734841481713,0.73036316,96872.0,96871.0,0.0001858]
[1734841481887,0.73336316,96872.0,96871.0,0.0001858]
[1734841482492,0.78066316,96872.0,96871.0,0.0001858]
[1734841483149,0.78666316,96872.0,96871.0,0.0001858]
[1734841483796,0.78066316,96872.0,96871.0,0.0001858]
[1734841483992,0.77766316,96872.0,96871.0,0.0001858]
[1734841484197,0.79066316,96872.0,96871.0,0.0001858]
[1734841484371,0.78166316,96872.0,96871.0,0.0001858]
[1734841484716,0.78666316,96872.0,96871.0,0.0001858]
[1734841484957,0.77766316,96872.0,96871.0,0.0001858]
[1734841485225,0.93166316,96872.0,96871.0,0.0001858]
[1734841485933,0.92766316,96872.0,96871.0,0.0001858]
[1734841486316,0.93666316,96872.0,96871.0,0.0001858]
[1734841487299,0.94966316,96872.0,96871.0,0.0001858]
[1734841487710,0.94566316,96872.0,96871.0,0.0001858]
[1734841487907,0.95615077,96872.0,96871.0,0.0001858]
[1734841488108,0.98315077,96872.0,96871.0,0.0001858]
[1734841488529,0.97915077,96872.0,96871.0,0.0001858]
[1734841488805,0.98415077,96872.0,96871.0,0.0001858]
[1734841489317,0.96615077,96872.0,96871.0,0.0001858]
[1734841489508,0.89275077,96872.0,96851.0,0.0001]
[1734841489765,0.2889,96852.0,96851.0,0.0001]
[1734841489967,0.3902084,96852.0,96851.0,0.0001]
[1734841490907,0.3902084,96852.0,96851.0,0.0002636]
[1734841491325,0.3932084,96852.0,96851.0,0.0002636]
[1734841491566,0.48531182,96852.0,96851.0,0.0002636]
[1734841491944,0.48231182,96852.0,96851.0,0.0002636]
[1734841492572,0.48531182,96852.0,96851.0,0.0002636]
[1734841492776,0.3982084,96852.0,96851.0,0.0002636]
[1734841492983,0.3932084,96852.0,96851.0,0.0002636]
[1734841493524,0.3982084,96852.0,96851.0,0.0002636]
[1734841495424,0.40859774,96852.0,96851.0,0.0003493]
[1734841496591,0.3982084,96852.0,96851.0,0.0003493]
[1734841496822,0.6712084,96852.0,96851.0,0.0003493]
[1734841497607,0.71072918,96852.0,96851.0,0.0003493]
[1734841498044,0.70772918,96852.0,96851.0,0.0003493]
[1734841498242,0.71272918,96852.0,96851.0,0.0003493]
[1734841498673,1.32855102,96852.0,96851.0,0.0003493]
[1734841499087,0.356541,96833.0,96832.0,8.57e-05]
[1734841499230,0.5335494,96833.0,96832.0,0.0006319]
[1734841499655,0.5527381,96833.0,96832.0,0.0006319]
[1734841500281,0.5537381,96833.0,96832.0,0.0006319]
[1734841500485,0.5547381,96833.0,96832.0,0.0006319]
[1734841501964,0.4790381,96833.0,96832.0,0.0006319]
[1734841503102,0.1224971,96833.0,96832.0,0.0006319]
[1734841503247,0.12307314,96833.0,96832.0,0.0006319]
[1734841505725,0.0211887,96833.0,96832.0,0.0006319]
[1734841506245,0.002,96833.0,96832.0,0.0006319]
[1734841507742,0.001,96833.0,96832.0,0.0006319]
[1734841507941,0.00057604,96842.0,96833.0,0.206541]
[1734841508215,0.01976474,96842.0,96833.0,0.206541]
[1734841508495,0.01976474,96842.0,96837.0,0.20653]
[1734841508701,0.0191887,96846.0,96837.0,0.20653]
[1734841508876,0.10188444,96845.0,96837.0,0.20653]
[1734841509275,0.0191887,96844.0,96837.0,0.20653]
[1734841509460,0.00057604,96843.0,96837.0,0.20653]
[1734841509668,0.01976474,96843.0,96837.0,0.20653]
[1734841510220,0.002,96842.0,96837.0,0.20653]
[1734841510426,0.01976474,96843.0,96837.0,0.20653]
[1734841510626,0.0191887,96842.0,96837.0,0.20653]
[1734841511459,0.0191887,96841.0,96837.0,0.20653]
[1734841512039,0.01976474,96841.0,96837.0,0.20653]
[1734841512240,0.01976474,96840.0,96837.0,0.20653]
[1734841512460,0.0191887,96840.0,96837.0,0.20653]
[1734841512837,0.0191887,96841.0,96837.0,0.20653]
[1734841513237,0.0191887,96840.0,96837.0,0.20653]
[1734841513659,0.0191887,96839.0,96837.0,0.20653]
[1734841514046,0.001,96840.0,96837.0,0.20653]
[1734841514537,0.0191887,96839.0,96837.0,0.20653]
[1734841514930,0.0191887,96838.0,96837.0,0.20653]
[1734841516797,0.0191887,96838.0,96833.0,0.206541]
[1734841516946,0.0191887,96838.0,96832.0,0.0006319]
[1734841517126,0.01976474,96837.0,96833.0,0.206541]
[1734841517510,0.0191887,96836.0,96833.0,0.206541]
[1734841517942,0.0191887,96835.0,96833.0,0.206541]
[1734841518302,0.0191887,96834.0,96832.0,0.0006319]
[1734841518829,0.0191887,96833.0,96832.0,0.0006319]
[1734841522841,0.00057604,96845.0,96832.0,0.0006319]
[1734841523047,0.1013084,96844.0,96832.0,0.0006319]
[1734841523246,0.00057604,96843.0,96832.0,0.0006319]
[1734841523828,0.26297246,96842.0,96832.0,0.0006319]
[1734841524047,0.00057604,96841.0,96832.0,0.0006319]
[1734841525407,0.00357604,96841.0,96832.0,0.0006319]
[1734841526018,0.01922388,96840.0,96832.0,0.0006319]
[1734841526227,0.00057604,96839.0,96832.0,0.0006319]
[1734841526640,0.01980476,96839.0,96832.0,0.0006319]
[1734841527047,0.01922872,96838.0,96832.0,0.0006319]
[1734841527265,0.00057604,96837.0,96832.0,0.0006319]
[1734841527547,0.01922872,96836.0,96832.0,0.0006319]
[1734841528131,0.01922872,96835.0,96832.0,0.0006319]
[1734841528586,0.01922872,96834.0,96832.0,0.0006319]
[1734841528922,0.01922872,96833.0,96832.0,0.0006319]
[1734841534443,0.01922872,96833.0,96832.0,0.0810319]
[1734841534784,0.09192543,96839.0,96832.0,0.0810319]
[1734841536400,0.09192543,96842.0,96832.0,0.0810319]
[1734841536572,0.001,96839.0,96832.0,0.0820645]
[1734841536797,0.001,96839.0,96838.0,0.20653]
[1734841537201,0.003,96839.0,96838.0,0.20653]
[1734841537428,0.02227057,96839.0,96838.0,0.20653]
[1734841537625,0.02027057,96839.0,96838.0,0.20653]
[1734841537843,0.02127057,96839.0,96838.0,0.20653]
[1734841538042,0.01927057,96839.0,96838.0,0.20653]
[1734841538445,0.02027057,96839.0,96838.0,0.20653]
[1734841538869,0.02127057,96839.0,96832.0,0.0006319]
[1734841539018,0.00057604,96838.0,96832.0,0.0006319]
[1734841539385,0.01984661,96838.0,96832.0,0.0006319]
[1734841539763,0.01927057,96837.0,96832.0,0.0006319]
[1734841540067,0.00057604,96836.0,96832.0,0.0006319]
[1734841540405,0.01927057,96835.0,96832.0,0.0006319]
[1734841540845,0.01927057,96834.0,96832.0,0.0006319]
[1734841541388,0.01927057,96833.0,96832.0,0.0006319]
[1734841549831,0.09192543,96834.0,96833.0,0.206541]
[1734841550696,0.13788814,96836.0,96833.0,0.206541]
[1734841551420,0.13788814,96836.0,96833.0,0.413082]
[1734841551592,0.13788814,96836.0,96833.0,0.206541]
[1734841551965,0.13788814,96834.0,96833.0,0.206541]
[1734841553366,0.09256395,96834.0,96833.0,0.206541]
[1734841554371,0.09256395,96835.0,96833.0,0.206541]
[1734841555781,0.13788814,96835.0,96833.0,0.206541]
[1734841557138,0.13788814,96835.0,96832.0,0.0006319]
[1734841557856,0.01928627,96834.0,96832.0,0.0006319]
[1734841558345,0.01928627,96833.0,96832.0,0.0006319]
[1734841558824,0.01986231,96833.0,96832.0,0.0006319]
[1734841559823,0.15775045,96833.0,96832.0,0.0006319]
[1734841560327,0.15875045,96833.0,96832.0,0.0006319]
[1734841560566,0.15975045,96833.0,96832.0,0.0006319]
[1734841560827,0.15875045,96833.0,96832.0,0.0006319]
[1734841561060,0.14046418,96833.0,96832.0,0.0006319]
[1734841561292,0.34429048,96833.0,96832.0,0.0006319]
[1734841561551,0.34271444,96833.0,96832.0,0.0006319]
[1734841562023,0.34371444,96833.0,96832.0,0.0006319]
[1734841562282,0.36099014,96833.0,96832.0,0.0006319]
[1734841562522,0.25263713,96833.0,96832.0,0.0006319]
[1734841562752,0.25163713,96833.0,96832.0,0.0006319]
[1734841562984,0.23236143,96833.0,96832.0,0.0006319]
[1734841563223,0.34271444,96833.0,96832.0,0.0006319]
[1734841563487,0.34371444,96833.0,96832.0,0.0006319]
[1734841564060,0.36198446,96833.0,96832.0,0.0006319]
[1734841564269,0.36298446,96833.0,96832.0,0.0006319]
[1734841564515,0.02027002,96833.0,96832.0,0.0006319]
[1734841564990,0.02127002,96833.0,96832.0,0.0006319]
[1734841565222,0.01927002,96833.0,96832.0,0.0006319]
[1734841565450,0.59326051,96833.0,96832.0,0.0006319]
[1734841565680,0.59426051,96833.0,96832.0,0.0006319]
[1734841566386,0.59426051,96833.0,96832.0,0.2071749]
[1734841566862,0.36298446,96833.0,96832.0,0.2071749]
[1734841567096,0.36298446,96833.0,96832.0,0.0006319]
[1734841567357,0.34371444,96833.0,96832.0,0.0006319]
[1734841568064,0.52871385,96833.0,96832.0,0.0006319]
[1734841568906,0.54697709,96833.0,96832.0,0.0006319]
[1734841569121,0.54597709,96833.0,96832.0,0.0006319]
[1734841571127,0.87698549,96833.0,96832.0,0.0006319]
[1734841571303,0.92338549,96833.0,96832.0,0.0006319]
[1734841571511,0.92438549,96833.0,96832.0,0.0006319]
[1734841571770,0.92338549,96833.0,96832.0,0.0006319]
[1734841572087,0.92438549,96833.0,96832.0,0.0006319]
[1734841572310,0.93470644,96833.0,96832.0,0.0006319]
[1734841572723,0.93770644,96833.0,96832.0,0.0006319]
[1734841572935,0.93670644,96833.0,96832.0,0.0006319]
[1734841573178,0.93870644,96833.0,96832.0,0.0006319]
[1734841573498,1.0300173,96833.0,96832.0,0.0006319]
[1734841574655,0.75370703,96833.0,96832.0,0.0006319]
[1734841574832,0.206579,96815.0,96814.0,8.57e-05]
[1734841575035,0.3838874,96815.0,96814.0,8.57e-05]
[1734841575274,0.40315064,96815.0,96814.0,8.57e-05]
[1734841575550,0.09526324,96815.0,96814.0,8.57e-05]
[1734841575725,0.01926324,96815.0,96814.0,8.57e-05]
[1734841576130,0.02026324,96815.0,96814.0,8.57e-05]
[1734841576537,0.01926324,96815.0,96814.0,8.57e-05]
[1734841576776,0.02026324,96815.0,96814.0,8.57e-05]
[1734841577377,0.02126324,96815.0,96814.0,8.57e-05]
[1734841577582,0.02026324,96815.0,96814.0,8.57e-05]
[1734841577986,0.01926324,96815.0,96814.0,8.57e-05]
[1734841578815,0.01926324,96815.0,96814.0,0.01024886]
[1734841579018,0.01926324,96821.0,96815.0,0.206579]
[1734841579221,0.01926324,96822.0,96815.0,0.206579]
[1734841579453,0.01926324,96821.0,96815.0,0.206579]
[1734841579658,0.00057604,96820.0,96815.0,0.413158]
[1734841579867,0.00057604,96820.0,96815.0,0.206579]
[1734841580082,0.01926324,96819.0,96815.0,0.206579]
[1734841580292,0.00057604,96818.0,96815.0,0.206579]
[1734841580493,0.01983928,96818.0,96815.0,0.206579]
[1734841580939,0.01926324,96817.0,96815.0,0.206579]
[1734841581553,0.01926324,96816.0,96815.0,0.206579]
[1734841581771,0.01926324,96816.0,96814.0,8.57e-05]
[1734841582192,0.01926324,96816.0,96815.0,0.206579]
[1734841582399,0.00057604,96823.0,96815.0,0.206579]
[1734841582625,0.00057604,96822.0,96815.0,0.206579]
[1734841582745,0.01981033,96822.0,96815.0,0.206579]
[1734841583236,0.00057604,96822.0,96815.0,0.206579]
[1734841584124,0.00057604,96822.0,96815.0,0.413158]
[1734841584345,0.001,96816.0,96815.0,0.413158]
[1734841584888,0.00457604,96822.0,96815.0,0.413158]
[1734841585090,0.00457604,96822.0,96815.0,0.206579]
[1734841585091,0.00057604,96822.0,96815.0,0.206579]
[1734841585303,0.00657604,96822.0,96815.0,0.206579]
[1734841585684,0.00057604,96822.0,96815.0,0.206579]
[1734841585890,0.00057604,96822.0,96814.0,8.57e-05]
[1734841586532,0.00057604,96822.0,96815.0,0.206579]
[1734841587460,0.00357604,96822.0,96815.0,0.206579]
[1734841587775,0.00157604,96822.0,96815.0,0.206579]
[1734841587978,0.00257604,96822.0,96815.0,0.206579]
[1734841588196,0.0814,96821.0,96814.0,8.57e-05]
[1734841588374,0.00057604,96820.0,96814.0,8.57e-05]
[1734841589651,0.00057604,96820.0,96815.0,0.206579]
[1734841590118,0.00157604,96820.0,96815.0,0.206579]
[1734841591009,0.00057604,96820.0,96815.0,0.206579]
[1734841591220,0.00157604,96820.0,96815.0,0.206579]
[1734841591860,0.00257604,96820.0,96814.0,8.57e-05]
[1734841592578,0.00157604,96820.0,96814.0,8.57e-05]
[1734841593003,0.01925007,96819.0,96814.0,8.57e-05]
[1734841593208,0.00057604,96818.0,96814.0,8.57e-05]
[1734841593408,0.01925007,96817.0,96814.0,8.57e-05]
[1734841593820,0.01925007,96816.0,96814.0,8.57e-05]
[1734841594263,0.01925007,96815.0,96814.0,8.57e-05]
[1734841594938,0.00257604,96818.0,96814.0,8.57e-05]
[1734841595134,0.00057604,96817.0,96814.0,8.57e-05]
[1734841595343,0.001,96815.0,96814.0,8.57e-05]
[1734841595787,0.00057604,96817.0,96814.0,8.57e-05]
[1734841596193,0.001,96815.0,96814.0,8.57e-05]
[1734841596592,0.00157604,96818.0,96814.0,8.57e-05]
[1734841596819,0.001,96817.0,96814.0,8.57e-05]
[1734841597240,0.00157604,96818.0,96814.0,8.57e-05]
[1734841597401,0.001,96818.0,96814.0,8.57e-05]
[1734841597771,0.00057604,96820.0,96814.0,8.57e-05]
[1734841598175,0.002,96817.0,96814.0,8.57e-05]
[1734841598593,0.001,96817.0,96814.0,8.57e-05]
[1734841599279,0.00157604,96820.0,96814.0,8.57e-05]
[1734841599710,0.001,96818.0,96814.0,8.57e-05]
[1734841599827,0.00157604,96820.0,96814.0,8.57e-05]
[1734841600234,0.001,96817.0,96814.0,8.57e-05]
[1734841600699,0.001,96817.0,96815.0,0.206579]
[1734841601069,0.00057604,96820.0,96815.0,0.206579]
[1734841601263,0.002,96817.0,96815.0,0.206579]
[1734841601883,0.001,96817.0,96815.0,0.206579]
[1734841602114,0.002,96817.0,96815.0,0.206579]
[1734841602531,0.001,96817.0,96815.0,0.206579]
[1734841602737,0.002,96817.0,96815.0,0.206579]
[1734841603997,0.01928398,96816.0,96815.0,0.206579]
[1734841604912,0.002,96817.0,96815.0,0.206579]
[1734841605061,0.001,96817.0,96815.0,0.206579]
[1734841605274,0.001,96817.0,96814.0,8.57e-05]
[1734841605875,0.206579,96815.0,96814.0,8.57e-05]
[1734841606082,0.3078874,96815.0,96814.0,8.57e-05]
[1734841606504,0.3867874,96815.0,96814.0,8.57e-05]
[1734841607391,0.91265398,96815.0,96814.0,8.57e-05]
[1734841609278,0.91665398,96815.0,96814.0,8.57e-05]
[1734841609805,0.91865398,96815.0,96814.0,8.57e-05]
[1734841610197,0.91265398,96815.0,96814.0,8.57e-05]
[1734841610547,0.91965398,96815.0,96814.0,8.57e-05]
[1734841611204,0.91765398,96815.0,96814.0,8.57e-05]
[1734841611682,0.91965398,96815.0,96814.0,8.57e-05]
[1734841612128,0.91465398,96815.0,96814.0,8.57e-05]
[1734841612330,0.91965398,96815.0,96814.0,8.57e-05]
[1734841612876,0.91765398,96815.0,96814.0,8.57e-05]
[1734841613355,0.91965398,96815.0,96814.0,8.57e-05]
[1734841613864,0.91765398,96815.0,96814.0,8.57e-05]
[1734841614064,0.73300685,96815.0,96814.0,8.57e-05]
[1734841614281,0.73500685,96815.0,96814.0,8.57e-05]
[1734841616109,0.72800685,96815.0,96814.0,8.57e-05]
[1734841616465,0.73100685,96815.0,96814.0,8.57e-05]
[1734841616698,0.73600685,96815.0,96814.0,8.57e-05]
[1734841616868,0.72800685,96815.0,96814.0,8.57e-05]
[1734841617071,0.73000685,96815.0,96814.0,8.57e-05]
[1734841617309,0.73500685,96815.0,96814.0,8.57e-05]
[1734841617516,0.96081576,96815.0,96814.0,8.57e-05]
[1734841617802,0.96581576,96815.0,96814.0,8.57e-05]
[1734841618005,0.75923676,96815.0,96814.0,8.57e-05]
[1734841619280,0.75423676,96815.0,96814.0,8.57e-05]
[1734841619868,0.75923676,96815.0,96814.0,8.57e-05]
[1734841620707,0.75723676,96815.0,96814.0,8.57e-05]
[1734841621022,0.52642785,96815.0,96814.0,8.57e-05]
[1734841621962,0.52842785,96815.0,96814.0,8.57e-05]
[1734841622179,0.713432,96815.0,96814.0,8.57e-05]
[1734841622329,0.708432,96815.0,96814.0,8.57e-05]
[1734841622538,0.706432,96815.0,96814.0,8.57e-05]
[1734841622742,0.712432,96815.0,96814.0,8.57e-05]
[1734841623579,0.710432,96815.0,96814.0,8.57e-05]
[1734841623791,0.712432,96815.0,96814.0,8.57e-05]
[1734841623991,0.708432,96815.0,96814.0,8.57e-05]
[1734841624400,0.713432,96815.0,96814.0,8.57e-05]
[1734841624834,0.52842785,96815.0,96814.0,8.57e-05]
[1734841625045,0.52642785,96815.0,96814.0,8.57e-05]
[1734841625229,0.52842785,96815.0,96814.0,8.57e-05]
[1734841629342,0.34821945,96815.0,96814.0,8.57e-05]
[1734841629759,0.34121945,96815.0,96814.0,8.57e-05]
[1734841629990,0.34721945,96815.0,96814.0,8.57e-05]
[1734841630220,0.34321945,96815.0,96814.0,8.57e-05]
[1734841630685,0.34421945,96815.0,96814.0,8.57e-05]
[1734841630904,0.003,96815.0,96814.0,8.57e-05]
[1734841631098,0.001,96815.0,96814.0,8.57e-05]
[1734841631511,0.002,96815.0,96814.0,8.57e-05]
[1734841631919,0.09251847,96819.0,96814.0,8.57e-05]
[1734841632139,0.09251847,96823.0,96815.0,0.206579]
[1734841632911,0.09251847,96823.0,96819.0,0.206569]
[1734841633271,0.09251847,96823.0,96819.0,0.413139]
[1734841633718,0.09351847,96823.0,96819.0,0.413139]
[1734841634575,0.09451847,96823.0,96819.0,0.413139]
[1734841634986,0.09351847,96823.0,96819.0,0.413139]
[1734841635195,0.09251847,96823.0,96819.0,0.413139]
[1734841635399,0.09351847,96823.0,96819.0,0.413139]
[1734841635576,0.09451847,96823.0,96819.0,0.413139]
[1734841635798,0.09251847,96824.0,96819.0,0.413139]
[1734841636060,0.09251847,96824.0,96821.0,0.413132]
[1734841636447,0.09251847,96824.0,96823.0,0.206562]
[1734841637275,0.09251847,96828.0,96825.0,0.206558]
[1734841637617,0.09251847,96828.0,96825.0,0.413116]
[1734841638714,0.00054364,96833.0,96830.0,0.206547]
[1734841638945,0.00054364,96833.0,96830.0,0.287047]
[1734841639977,0.00054364,96833.0,96830.0,0.288047]
[1734841640131,0.00054364,96833.0,96830.0,0.4391554]
[1734841640746,0.0011714,96831.0,96830.0,0.4391554]
[1734841640941,0.0011714,96831.0,96830.0,1.1986548]
[1734841641173,0.0001714,96831.0,96830.0,1.1976548]
[1734841641547,0.0001714,96831.0,96830.0,1.1986548]
[1734841642017,0.0001714,96831.0,96830.0,1.0986548]
[1734841642166,0.0011714,96831.0,96830.0,1.08591989]
[1734841642369,0.0011714,96831.0,96830.0,0.88361149]
[1734841642778,0.0021714,96831.0,96830.0,0.88461149]
[1734841643517,0.0011714,96831.0,96830.0,0.88461149]
[1734841643997,0.0011714,96831.0,96830.0,0.80411149]
[1734841644348,0.0001714,96831.0,96830.0,0.80311149]
[1734841644728,0.0011714,96831.0,96830.0,0.80411149]
[1734841645162,0.0001714,96831.0,96830.0,0.80311149]
[1734841645821,0.0011714,96831.0,96830.0,0.80411149]
[1734841646186,0.0001714,96831.0,96830.0,0.26661209]
[1734841646385,0.0011714,96831.0,96830.0,0.26761209]
[1734841646926,0.0011714,96831.0,96830.0,0.21781209]
[1734841657459,0.0011714,96831.0,96830.0,0.21789779]
[1734841658451,0.0011714,96831.0,96830.0,0.0010857]
[1734841659215,0.0001714,96831.0,96830.0,8.57e-05]
[1734841662200,0.0011714,96831.0,96830.0,8.57e-05]
[1734841665996,0.0011714,96831.0,96827.0,0.18922589]
[1734841666769,0.0001714,96831.0,96827.0,0.18922589]
[1734841668342,0.0011714,96831.0,96827.0,0.18922589]
[1734841669101,0.0011714,96831.0,96827.0,0.18931159]
[1734841677858,0.0011714,96831.0,96827.0,0.39586459]
[1734841678655,0.0001714,96831.0,96827.0,0.39586459]
[1734841679655,0.0001714,96831.0,96827.0,0.39686459]
[1734841680972,0.0001714,96831.0,96829.0,0.206549]
[1734841681177,0.0001714,96831.0,96830.0,0.00103263]
[1734841682251,0.0001714,96831.0,96829.0,0.206549]
[1734841682486,0.0001714,96831.0,96830.0,0.00103259]
[1734841684041,0.0001714,96831.0,96830.0,0.00203259]
[1734841684938,0.0001714,96831.0,96830.0,0.00103259]
[1734841686281,0.0001714,96831.0,96830.0,0.00203259]
[1734841686909,0.0001714,96831.0,96830.0,0.15194099]
[1734841687149,0.0001714,96831.0,96830.0,0.15094099]
[1734841687474,0.0011714,96831.0,96830.0,0.23004099]
[1734841687675,0.0011714,96831.0,96830.0,0.2290084]
[1734841687878,0.0001714,96831.0,96830.0,0.2280084]
[1734841688033,0.0011714,96831.0,96830.0,0.2290084]
[1734841688458,0.0011714,96831.0,96830.0,0.261238]
[1734841688662,0.0011714,96831.0,96830.0,0.2290084]
[1734841689030,0.0011714,96831.0,96830.0,0.24981743]
[1734841689431,0.0011714,96831.0,96830.0,0.26037841]
[1734841689976,0.0011714,96831.0,96830.0,1.20209451]
[1734841690201,0.00054364,96833.0,96832.0,0.4997]
[1734841690436,0.00054364,96833.0,96832.0,0.6332251]
[1734841692899,0.00171504,96833.0,96832.0,0.6402251]
[1734841693450,0.00171504,96833.0,96832.0,0.73292204]
[1734841694212,0.00171504,96833.0,96832.0,1.26942144]
[1734841694350,0.00171504,96833.0,96832.0,1.1767245]
[1734841695149,4e-08,96833.0,96832.0,1.1767245]
[1734841696182,0.0001714,96851.0,96842.0,0.619563]